[Event "44th Chess Olympiad Open 2022"]
[Site "Chennai"]
[Date "2022.08.01"]
[Round "4.35"]
[White "Macovei, Andrei"]
[Black "Juarez Flores, Carlos A."]
[Result "1-0"]
[WhiteElo "2478"]
[BlackElo "2335"]
[Annotator "TA"]
[PlyCount "49"]
[EventDate "2022.??.??"]
[TimeControl "60"]

{[%evp 9,49,-25,-17,-30,-16,-23,16,21,69,71,73,79,89,79,69,72,64,75,75,71,73,
76,159,143,147,147,136,116,297,302,290,284,3044,2000,29985,29986,29986,29987,
29992,29993,29995,29996]} 1. e4 {[%emt 0:00:02]} c6 {[%emt 0:00:05]} 2. d4 {
[%emt 0:00:47]} d5 {[%emt 0:00:03]} 3. f3 {[%emt 0:01:18]} e6 {[%emt 0:00:18]
[%cal Ye7e6,Ye6e5]} 4. Nc3 {[%emt 0:00:58]} Bb4 {[%emt 0:01:24]} 5. a3 {
[%emt 0:02:36]} Bxc3+ {[%emt 0:00:18]} 6. bxc3 {[%emt 0:00:01] B12: Caro-Kann:
Advance Variation.} dxe4 {[%emt 0:00:08][%cal Yc6c5]} 7. Nh3 {[%emt 0:00:07]}
e5 {[%emt 0:00:53] aiming for ...Bxh3.} (7... Qa5 $5 {[%cal Ra5c3]}) 8. Ng5 {
[%emt 0:00:12] [#] The position is equal.} (8. fxe4 Bxh3 9. gxh3 Qh4+ 10. Kd2
Nf6 $17) 8... e3 $146 {[%emt 0:11:00]} (8... exf3 $1 $11 9. Qxf3 Nf6) ({
Predecessor:} 8... exf3 9. Qxf3 Qf6 10. Bc4 Qxf3 11. gxf3 Nh6 12. dxe5 Nd7 13.
Bf4 Nb6 14. Bb3 Nd5 {1-0 (87) Oganian,M (2437)-Garv,G (2083) Chess.com INT 2022
}) 9. Bxe3 $14 {[%emt 0:02:30] Strongly threatening Bc4.} h6 {[%emt 0:13:37]}
10. Ne4 {[%emt 0:00:46]} Nf6 {[%emt 0:01:08]} 11. Bd3 {[%emt 0:08:12]} O-O {
[%emt 0:07:31]} 12. dxe5 {[%emt 0:21:31]} Nxe4 {[%emt 0:01:33]} 13. Bxe4 {
[%emt 0:00:02] A strong pair of Bishops.} (13. fxe4 Nd7 $11) 13... Qa5 {
[%emt 0:00:12]} 14. Qd4 {[%emt 0:01:40] White is more active.} Na6 {[%emt 0:00:
00] And now ...Rd8 would win.} 15. Bd3 {[%emt 0:05:11]} Rd8 {[%emt 0:02:00] [#]
} (15... Re8 $142) 16. Qe4 $1 $16 {[%emt 0:01:19]} Qxc3+ {[%emt 0:00:13]} 17.
Kf2 {[%emt 0:07:25]} g6 {[%emt 0:03:19] [#]} 18. Qh4 $1 $36 {[%emt 0:01:32]
Black is under strong pressure.} (18. Bxh6 $6 Nc5 19. Qh4 Rxd3 20. cxd3 Nxd3+
21. Kg3 Qxe5+ 22. Bf4 Qd4 $11) 18... Re8 {[%emt 0:02:10]} (18... Rd5 $16) 19.
Rae1 $18 {[%emt 0:12:39]} ({Weaker is} 19. Qxh6 Rxe5 20. Rad1 Nc5 $16) 19...
Nc5 {[%emt 0:01:15]} 20. Bxh6 {[%emt 0:04:14][%cal Yd3g6] Black must now
prevent Bxg6!} Rxe5 $2 {[%emt 0:24:49]} (20... Nxd3+ $2 21. cxd3 Qb2+ 22. Kg3
Rxe5 23. Bc1 $18) (20... Ne6 21. Qf6 Qc5+ 22. Be3 Qa5) 21. Rxe5 {[%emt 0:00:44]
Re8+ would kill now.} (21. Qd8+ Kh7 22. Rxe5 (22. Qf8 Nxd3+ 23. cxd3 Qc5+ 24.
d4 Qxf8 $11) 22... Nxd3+ 23. cxd3 (23. Qxd3 Qxe5 24. Re1 Qf6 $14) 23... Qxe5
$16) 21... Qxe5 {[%emt 0:00:05]} 22. Re1 {[%emt 0:00:21] White mates.} ({Not} 
22. Qd8+ Kh7 23. Be3 Nxd3+ 24. cxd3 Qh8 $16) 22... Nxd3+ {[%emt 0:03:14]} 23.
cxd3 {[%emt 0:00:06][%cal Yc2d3,Yd3d4]} Qb2+ {[%emt 0:02:07]} 24. Re2 {[%emt 0:
00:02]} Qb6+ {[%emt 0:01:56]} 25. d4 {[%emt 0:00:27] Black did not feel at
home in the position after the opening. Weighted Error Value: White=0.01 
(flawless) /Black=0.45} 1-0

[Event "44th Chess Olympiad Open 2022"]
[Site "Chennai"]
[Date "2022.08.01"]
[Round "4.35"]
[White "Baltag, Iulian"]
[Black "Galvez Dastin, Eduardo"]
[Result "1-0"]
[WhiteElo "2405"]
[BlackElo "2152"]
[Annotator "TA"]
[PlyCount "71"]
[EventDate "2022.??.??"]
[TimeControl "60"]

{[%evp 10,71,37,39,56,48,67,72,69,70,75,68,66,68,64,62,67,62,68,54,64,62,54,54,
158,56,75,77,82,71,81,63,79,93,90,74,94,80,79,87,128,119,134,85,158,97,183,177,
311,302,365,362,473,447,409,302,750,715,637,643,556,0,1246,1198]} 1. c4 {
[%emt 0:00:04]} c6 {[%emt 0:00:08]} 2. d4 {[%emt 0:00:34]} d5 {[%emt 0:00:06]}
3. e3 {[%emt 0:00:26]} Nf6 {[%emt 0:00:20]} 4. Nc3 {[%emt 0:00:08]} a6 {
[%emt 0:03:26]} 5. Nf3 {[%emt 0:00:59]} b5 {[%emt 0:00:09]} 6. b3 {[%emt 0:00:
00][%cal Yb2b3,Yb3c4,Yc4c5] [#]} bxc4 $146 {[%emt 0:00:34] D15: Slav Defence:
4 Nc3 a6 and gambit lines after 4 Nc3 dxc4.} ({Predecessor:} 6... Bf5 7. Be2 e6
8. O-O Nbd7 9. Bb2 Bd6 10. a4 b4 11. Na2 a5 12. Nc1 Ne4 13. Bd3 Qf6 14. Ne2 h5
15. cxd5 cxd5 {1-0 (75) Keymer,V (2654)-Shimanov,A (2581) Chess.com INT 2022})
7. bxc4 {[%emt 0:00:08]} Bg4 {[%emt 0:00:07]} 8. Qa4 {[%emt 0:02:37]} Bxf3 {
[%emt 0:09:10] White is better.} 9. gxf3 {[%emt 0:04:47]} e6 {[%emt 0:00:00]}
10. f4 {[%emt 0:10:43]} Be7 {[%emt 0:06:49]} 11. c5 {[%emt 0:00:00]} O-O {
[%emt 0:03:42]} 12. Bg2 {[%emt 0:13:27]} Qc7 {[%emt 0:12:18]} 13. O-O {[%emt 0:
08:40]} Nbd7 {[%emt 0:00:48]} 14. Rb1 {[%emt 0:11:22]} Rfb8 {[%emt 0:00:00]}
15. Bd2 {[%emt 0:00:00]} Rxb1 16. Rxb1 Nb8 {[%emt 0:05:04]} (16... Bd8 $14) 17.
a3 {[%emt 0:03:12]} ({White should play} 17. Qb4 $16) 17... Ra7 {[%emt 0:01:32]
} 18. Qb3 {[%emt 0:01:59]} Nbd7 {[%emt 0:05:59]} 19. Bf1 {[%cal Yg2f1,Yf1d3,
Yd3f5]} h6 {[%emt 0:00:18]} 20. h3 g5 {[%emt 0:00:00]} 21. fxg5 {[%emt 0:00:26]
} hxg5 {[%emt 0:00:00]} 22. Bd3 {[%emt 0:00:50]} Kg7 {[%emt 0:00:41]} 23. Kg2 {
[%emt 0:02:40]} e5 {[%emt 0:00:00]} 24. Bf5 {[%emt 0:00:00] White is much more
active.} Nh5 {[%emt 0:00:00]} 25. Ne2 {[%emt 0:00:00]} e4 {[%emt 0:09:52] [#]}
26. Ng3 {[%emt 0:00:00]} ({Better is} 26. Bg4 $1 {[%cal Rg4h5]} Nhf6 27. Ng3)
26... Nhf6 {[%emt 0:00:18]} (26... Nxg3 $142 27. fxg3 Bd8) 27. a4 {[%emt 0:00:
00]} (27. f3 $142) 27... Qd8 {[%emt 0:00:00]} (27... Bd8 $16 {is a better
defense.}) 28. a5 {[%emt 0:00:00]} Ng8 {[%emt 0:01:57]} (28... Qe8 $142 29. Qa4
Rc7) 29. Qa4 $18 {[%emt 0:00:00]} Nb8 {[%emt 0:01:49]} 30. Rb6 {[%emt 0:00:00]}
Nh6 {[%emt 0:00:28]} 31. Qb3 {[%emt 0:00:00]} Ra8 {[%emt 0:00:31]} 32. Rb7 {
[%emt 0:00:00]} Kf8 $2 {[%emt 0:00:51]} (32... Kf6) 33. Qb6 {[%emt 0:00:00] [#]
Rc7 is the strong threat.} Qe8 {[%emt 0:00:00]} 34. Qc7 {[%emt 0:00:00]} Qd8 {
[%emt 0:01:13]} 35. Qb6 {[%emt 0:00:00]} (35. Qxd8+ $18 Bxd8 36. Bc8) 35... Bf6
$2 {[%emt 0:01:03]} (35... Qe8 $11 36. Bb4 Ng8) 36. Rc7 {[%emt 0:00:00]
Weighted Error Value: White=0.28 (precise) /Black=0.28 (precise)} 1-0

[Event "44th Chess Olympiad Open 2022"]
[Site "Chennai"]
[Date "2022.08.01"]
[Round "4.35"]
[White "Cu Hor, Winston Darwin"]
[Black "Schitco, Ivan"]
[Result "1/2-1/2"]
[WhiteElo "2328"]
[BlackElo "2490"]
[Annotator "TA"]
[PlyCount "136"]
[EventDate "2022.??.??"]
[TimeControl "60"]

{[%evp 17,136,0,28,4,8,0,11,1,10,-22,-13,-13,-18,-21,-26,-29,8,0,0,-7,12,0,0,0,
0,0,12,-40,-41,-39,-46,-45,-28,-54,-55,-44,-51,-53,-33,-55,-34,-19,-10,-13,-2,
-15,0,-21,-16,-33,-13,-64,-44,-35,-24,-91,-7,0,0,-57,-81,-64,0,-31,0,-255,0,0,
0,0,0,0,0,0,0,0,0,0,0,0,0,0,0,0,0,0,0,0,0,0,0,0,0,0,0,0,0,0,0,0,0,0,0,0,0,0,0,
0,0,0,0,0,0,0,0,0,0,0,0,0,0]} 1. Nf3 {[%emt 0:00:05]} Nf6 {[%emt 0:00:15]} 2.
c4 {[%emt 0:00:07]} g6 {[%emt 0:00:13]} 3. g3 {[%emt 0:04:30]} Bg7 {[%emt 0:00:
00]} 4. Bg2 {[%emt 0:00:05]} O-O {[%emt 0:00:27]} 5. O-O {[%emt 0:00:04]} d6 {
[%emt 0:00:22]} 6. Nc3 {[%emt 0:00:07]} e5 {[%emt 0:01:12]} 7. d3 {[%emt 0:00:
00]} Nc6 {[%emt 0:01:56]} 8. Rb1 {[%emt 0:06:07]} a5 {[%emt 0:02:09]} 9. a3 {
[%emt 0:02:13]} Bf5 {[%emt 0:09:08]} 10. Ng5 {[%emt 0:03:02] A26: English
Opening vs King's Indian with ...Nc6 and d3.} h6 {[%emt 0:03:21]} 11. Nge4 {
[%emt 0:00:05] [#]} Nxe4 $146 {[%emt 0:04:32]} ({Predecessor:} 11... Qd7 12.
Nxf6+ Bxf6 13. Bxh6 Bg7 14. Nd5 Bh3 15. f4 Nd4 16. fxe5 Bxg2 17. Kxg2 Rae8 {
1-0 (29) Cocchi,A (2281)-Forno,R (2079) Arvier 2002}) 12. Nxe4 {[%emt 0:03:51]}
Qc8 {[%emt 0:05:52]} 13. b4 {[%emt 0:11:26]} axb4 {[%emt 0:00:05]} 14. axb4 {
[%emt 0:00:01]} Bh3 {[%emt 0:02:23]} 15. b5 {[%emt 0:05:43]} Bxg2 {[%emt 0:00:
00]} 16. Kxg2 {[%emt 0:03:26]} Ne7 {[%emt 0:01:03]} 17. Qb3 {[%emt 0:00:18]}
Qe6 {[%emt 0:03:35]} 18. Ba3 {[%emt 0:06:12]} Kh7 {[%emt 0:06:36]} 19. Nc3 {
[%emt 0:13:10]} c6 {[%emt 0:02:44]} 20. Ne4 {[%emt 0:02:25]} c5 {[%emt 0:02:08]
} 21. Nc3 {[%emt 0:02:59]} f5 {[%emt 0:01:14]} 22. Nd5 {[%emt 0:03:57]} (22.
Bb2 $11) 22... Nxd5 $15 {[%emt 0:01:01]} 23. cxd5 {[%emt 0:00:02]} Qd7 {
[%emt 0:01:37]} 24. Bb2 {[%emt 0:00:53]} Rae8 {[%emt 0:04:28]} 25. Qc4 {
[%emt 0:10:07]} e4 {[%emt 0:02:31]} 26. Bxg7 {[%emt 0:01:03]} Qxg7 {[%emt 0:00:
00]} 27. Ra1 {[%emt 0:00:33]} Rf7 {[%emt 0:04:04][%cal Yf8f7,Yf7e7,Ye7e4]} 28.
Ra4 {[%emt 0:01:46]} Qb2 {[%emt 0:07:17]} (28... Rfe7 $5 {[%cal Re4d3]}) 29. e3
{[%emt 0:04:08]} exd3 {[%emt 0:09:14]} 30. Qxd3 {[%emt 0:00:08]} Rfe7 {[%emt 0:
00:15]} 31. Rb1 {[%emt 0:01:34]} Qg7 {[%emt 0:01:05]} (31... Rxe3 $2 32. Qxe3 (
32. Rxb2 $2 Rxd3 33. Rba2 Kg7 $19) 32... Rxe3 33. Rxb2 $18) 32. Rc1 {[%emt 0:
00:58]} Qf7 {[%emt 0:01:51]} 33. h4 {[%emt 0:00:40]} Re4 {[%emt 0:00:00]} 34.
Rac4 {[%emt 0:03:02]} (34. Rca1 $11) 34... R8e5 {[%emt 0:02:32]} 35. Rd1 {
[%emt 0:01:56]} Kg7 {[%emt 0:05:28]} 36. b6 {[%emt 0:03:33]} (36. Ra1 $11 {
keeps the balance.}) 36... g5 {[%emt 0:00:09]} (36... Qe8 $17) 37. hxg5 $11 {
[%emt 0:01:29]} hxg5 {[%emt 0:00:02]} 38. Qc3 {[%emt 0:00:54]} (38. Rxe4 $11
Rxe4 39. Ra1) 38... Kg6 $15 {[%emt 0:01:26]} 39. Qc2 {[%emt 0:00:14]} Kg7 {
[%emt 0:04:03]} 40. Qc3 {[%emt 0:00:05]} Qh5 {[%emt 0:02:49]} 41. Rd2 {[%emt 0:
00:00] [#]} (41. Rh1 Qg4 42. Rxe4 Qxe4+ 43. Kg1 f4 44. gxf4 gxf4 $19) (41. Rxe4
$11 fxe4 42. Rh1 Qf3+ 43. Kg1) 41... g4 $2 {[%emt 0:03:06]} ({Better is} 41...
f4 $1 $19 {( -> ...f3+)} 42. gxf4 {[#]} (42. Rxe4 {leads to mate.} f3+ 43. Kg1
Qh3) 42... gxf4 $1 43. Rxe4 Qg6+ 44. Kh3 Qh7+ 45. Kg4 Qf5+ 46. Kf3 Qxe4+ 47.
Ke2 fxe3 48. fxe3 Kf7) 42. Rxe4 $11 {[%emt 0:03:19] The position is equal.} ({
Reject} 42. Kg1 Kg6 43. Qb3 Qh8 44. Rxe4 Rxe4 $17) 42... Qh3+ {[%emt 0:03:44]}
43. Kg1 {[%emt 0:00:07]} fxe4 {[%emt 0:00:03] Endgame KQR-KQR} 44. Qa1 {
[%emt 0:00:57]} Kf7 {[%emt 0:10:54]} 45. Qa4 $1 {[%emt 0:00:14]} Ke7 {[%emt 0:
01:11] Prevents Qd7+.} 46. Ra2 {[%emt 0:02:41]} Qh8 {[%emt 0:04:45]} (46... Rh5
$2 47. Qxe4+ Kf7 48. Qe6+ (48. Ra7 Qh2+ 49. Kf1 Qh1+ 50. Qxh1 Rxh1+ 51. Ke2 Kf6
$16) 48... Kg7 49. Qe7+ Kh6 50. Qxd6+ Kh7 51. Qe7+ Kg6 52. Qe4+ Kf6 53. Rc2 $18
) 47. Qc4 {[%emt 0:02:25]} Qg8 {[%emt 0:00:53]} 48. Ra7 {[%emt 0:04:35]} Qxd5 {
[%emt 0:01:16]} 49. Qa6 {[%emt 0:05:09]} Ke6 {[%emt 0:05:41]} 50. Qxb7 {
[%emt 0:00:34]} Qxb7 {[%emt 0:01:01]} 51. Rxb7 {[%emt 0:00:02][%cal Yb7e7]
aiming for Re7+! KR-KR} Rd5 {[%emt 0:02:25]} 52. Kf1 {[%emt 0:04:25]} Rd1+ {
[%emt 0:00:29]} 53. Ke2 {[%emt 0:00:10]} Rb1 {[%emt 0:00:00]} 54. Kd2 {[%emt 0:
00:35]} Rb2+ {[%emt 0:05:22]} 55. Kc3 {[%emt 0:00:10]} Rxf2 {[%emt 0:00:53]}
56. Rg7 {[%emt 0:00:25]} Rf1 {[%emt 0:02:00]} 57. Kc4 {[%emt 0:04:28]} Rb1 {
[%emt 0:00:37]} 58. Rg6+ $1 {[%emt 0:00:12]} Kd7 {[%emt 0:00:00] Threatens to
win with ...Kc6.} 59. Kd5 {[%emt 0:00:05]} Rd1+ {[%emt 0:00:00]} 60. Kxe4 {
[%emt 0:00:05]} Kc6 {[%emt 0:00:15] White must now prevent .. .c4.} 61. Rxg4 {
[%emt 0:00:27]} Kxb6 {[%emt 0:00:40]} 62. Rg8 {[%emt 0:00:20]} Kb5 {[%emt 0:00:
17]} 63. g4 {[%emt 0:00:24]} d5+ {[%emt 0:00:59]} 64. Ke5 {[%emt 0:00:19]} Kc4
{[%emt 0:00:19]} 65. Rc8 {[%emt 0:00:34]} Rg1 {[%emt 0:00:00]} 66. Kd6 {
[%emt 0:00:18]} Rxg4 {[%emt 0:00:08] And now ...Rg6+ would win.} 67. Rxc5+ {
[%emt 0:00:05]} Kd3 {[%emt 0:00:04]} 68. Rxd5+ {[%emt 0:00:06]} Kxe3 {[%emt 0:
00:03] Weighted Error Value: White=0.20 (precise) /Black=0.14 (very precise)}
1/2-1/2

[Event "44th Chess Olympiad Open 2022"]
[Site "Chennai"]
[Date "2022.08.01"]
[Round "4.35"]
[White "Lorenzana, Wilson Estuardo"]
[Black "Hamitevici, Vladimir"]
[Result "0-1"]
[WhiteElo "2182"]
[BlackElo "2473"]
[Annotator "TA"]
[PlyCount "162"]
[EventDate "2022.??.??"]
[TimeControl "60"]

{[%evp 10,162,31,22,31,33,27,14,25,12,13,14,17,0,0,-10,0,-1,-22,-10,-11,-19,0,
-50,-48,-115,-107,-104,-97,-100,-105,-107,-108,-99,-85,-91,-91,-112,-87,-107,
-52,-61,-69,-93,-95,-98,-93,-110,-116,-128,-116,-124,-116,-126,-122,-127,-122,
-129,-122,-135,-130,-131,-117,-142,-142,-142,-135,-142,-142,-156,-142,-142,
-142,-142,-142,-142,-142,-187,-159,-201,-206,-179,-166,-706,-187,-259,-243,
-227,-159,-182,-152,-152,-152,-163,-145,-152,-109,-145,-145,-152,-145,-152,
-152,-172,-167,-166,-152,-152,-137,-152,-152,-152,-136,-136,-136,-136,-136,
-136,-136,-137,-84,-96,-95,-156,-152,-212,-198,-591,-563,-591,-120,-108,-16,
-20,-24,-26,0,0,0,0,472,0,918,907,5916,599,520,165,150,0,0,-12840,-12840,
-29994,-29995]} 1. e4 {[%emt 0:00:13]} e5 {[%emt 0:00:48]} 2. Nf3 {[%emt 0:00:
00]} Nc6 {[%emt 0:00:08]} 3. Bc4 {[%emt 0:00:54]} Nf6 {[%emt 0:01:17]} 4. d3 {
[%emt 0:00:14]} h6 {[%emt 0:01:23]} 5. O-O {[%emt 0:01:04]} d6 {[%emt 0:01:45]}
6. a4 {[%emt 0:06:52]} g5 {[%emt 0:03:40] C55: Two Knights: 4 d3, 4 d4 exd4 5
e5 and Max Lange Attack.} 7. Nc3 {[%emt 0:02:00]} Bg7 {[%emt 0:03:15]} 8. a5 {
[%emt 0:01:09]} a6 {[%emt 0:02:24] The position is equal.} 9. Nd5 {[%emt 0:00:
00]} Nxd5 {[%emt 0:08:19]} 10. Bxd5 {[%emt 0:00:06]} O-O {[%emt 0:07:17] [#]}
11. Ne1 $146 {[%emt 0:07:21][%cal Yh2h4]} ({Predecessor:} 11. Nd2 Ne7 12. Bb3
Kh7 13. Nc4 f5 14. exf5 Bxf5 15. Ne3 Bg6 16. c3 Qd7 17. d4 exd4 18. cxd4 {
½-½ (53) Svidler,P (2723)-Oparin,G (2652) Chess.com INT 2020}) 11... Ne7 {
[%emt 0:00:28]} 12. Bb3 {[%emt 0:00:18]} d5 {[%emt 0:01:48]} 13. Bd2 {[%emt 0:
00:00]} Qd6 {[%emt 0:01:21]} 14. Qe2 {[%emt 0:11:27]} Be6 {[%emt 0:07:41]} 15.
Rd1 {[%emt 0:02:59]} Rae8 {[%emt 0:07:47]} 16. g3 {[%emt 0:02:26]} (16. c4 $11)
16... f5 $15 {[%emt 0:01:46][%cal Yf7f5,Yf5f4]} 17. Ng2 {[%emt 0:00:00]} ({
White should play} 17. exd5 $15 Nxd5 18. Ng2) 17... f4 $17 {[%emt 0:00:00]
Strongly threatening ...f3.} 18. f3 {[%emt 0:00:21]} Nc6 {[%emt 0:04:37]
Threatens to win with ...Nd4.} 19. Bc3 {[%emt 0:09:08]} Qc5+ {[%emt 0:07:27]}
20. Rf2 {[%emt 0:01:12]} d4 {[%emt 0:03:53]} (20... Nxa5 $6 21. Bxd5 Nc6 22.
Bxe6+ Rxe6 23. gxf4 $11) 21. Bxe6+ {[%emt 0:01:01]} Rxe6 {[%emt 0:00:02]} 22.
Be1 {[%emt 0:00:11]} Qb5 {[%emt 0:00:27]} (22... Nxa5 $2 23. b4 Qc6 24. bxa5
$18) 23. Ra1 {[%emt 0:02:19]} Rd8 {[%emt 0:07:02]} 24. b3 {[%emt 0:00:22]} b6 {
[%emt 0:05:05]} (24... Qc5 $17 25. Qd1 Qe7) 25. axb6 {[%emt 0:00:45]} cxb6 {
[%emt 0:00:01]} 26. Ra4 {[%emt 0:00:24]} a5 {[%emt 0:00:08]} 27. Bd2 {[%emt 0:
00:00]} Bf8 {[%emt 0:00:58]} 28. Ne1 {[%emt 0:00:13]} Bb4 {[%emt 0:01:58]} 29.
Qf1 {[%emt 0:00:38]} Bxd2 {[%emt 0:00:41]} 30. Rxd2 {[%emt 0:00:05]} Nb4 {
[%emt 0:00:20]} 31. Qh3 {[%emt 0:00:28]} Qd7 {[%emt 0:00:20]} 32. gxf4 {
[%emt 0:01:45]} exf4 {[%emt 0:00:28]} 33. Rg2 {[%emt 0:00:07]} Rc6 {[%emt 0:00:
00]} 34. Qh5 {[%emt 0:00:37]} Qf7 {[%emt 0:00:31]} 35. Qg4 {[%emt 0:00:22]} Kh7
{[%emt 0:00:23]} 36. Ra1 {[%emt 0:02:42]} Rg8 {[%emt 0:01:06] Black is much
more active.} 37. Re2 {[%emt 0:03:58]} Re6 {[%emt 0:02:20]} 38. Qg2 {[%emt 0:
00:00]} h5 {[%emt 0:02:30]} 39. h3 {[%emt 0:00:48] Prevents g4.} Qd7 {[%emt 0:
00:00]} 40. Qf1 {[%emt 0:02:03]} Nc6 {[%emt 0:00:53]} 41. Rh2 {[%emt 0:30:48]}
Rh6 {[%emt 0:32:14]} 42. Qf2 {[%emt 0:00:00]} Rgg6 {[%emt 0:00:00]} 43. Ng2 {
[%emt 0:00:00]} Qd6 {[%emt 0:00:00]} 44. Rf1 {[%emt 0:00:00]} Ne5 {[%emt 0:00:
00]} 45. Qd2 {[%emt 0:00:00]} Rg7 {[%emt 0:00:00][%cal Yg6g7,Yg7c7,Yc7c3]} 46.
Kf2 $2 {[%emt 0:00:00] [#]} (46. Ne1) 46... Qc5 $2 {[%emt 0:00:00]} (46... Nxf3
$1 47. Kxf3 g4+ 48. Ke2 f3+ 49. Ke1 Qxh2) 47. Ke2 {[%emt 0:00:00]} (47. Rhh1
$142) 47... Rc7 {[%emt 0:00:00]} 48. Rc1 {[%emt 0:00:00]} Qd6 {[%emt 0:00:00]
[%cal Ye5f3] ...Nxf3! is the strong threat.} 49. Ne1 {[%emt 0:01:49]} Rc3 {
[%emt 0:00:00]} 50. Kf1 {[%emt 0:00:00]} Rf6 {[%emt 0:00:00]} 51. Ra1 {[%emt 0:
00:00]} Nc6 {[%emt 0:00:00]} 52. Qf2 {[%emt 0:00:00]} Qe6 {[%emt 0:00:50]} 53.
Qg1 {[%emt 0:00:00]} Rg6 {[%emt 0:00:31]} 54. Qf2 {[%emt 0:00:00]} Kg8 {
[%emt 0:00:48]} 55. Rh1 {[%emt 0:00:00]} Rg7 {[%emt 0:00:00]} 56. Ra4 {[%emt 0:
01:39]} b5 {[%emt 0:01:30] Inhibits Rc4.} 57. Ra1 {[%emt 0:01:09]} Qd7 {
[%emt 0:03:22]} 58. Rh2 {[%emt 0:00:35]} Kf8 {[%emt 0:00:00]} 59. Qd2 {[%emt 0:
00:31]} Ke8 {[%emt 0:00:57]} 60. Ke2 {[%emt 0:01:49]} Qc7 {[%emt 0:02:01]} 61.
Kd1 {[%emt 0:01:34]} Kd7 {[%emt 0:01:17]} 62. Rg2 {[%emt 0:00:33]} Kc8 {
[%emt 0:00:12]} 63. Qf2 {[%emt 0:00:16]} Kb7 {[%emt 0:00:00]} 64. Qg1 {[%emt 0:
00:06]} Qe7 {[%emt 0:00:41]} (64... Qe5 $142 65. Ke2 h4) 65. h4 {[%emt 0:00:29]
} Rc5 {[%emt 0:00:40][%cal Yg5g4]} 66. Ra2 {[%emt 0:00:00]} ({White should try
} 66. c4) 66... Rg6 {[%emt 0:02:01][%cal Yg5g4,Yg7g6,Yg6d6,Yd6d4]} 67. Ra1 {
[%emt 0:01:07]} (67. Qf2 $17) 67... Kb6 $19 {[%emt 0:01:25]} 68. c4 $2 {
[%emt 0:00:18]} (68. b4 {is tougher.} Nxb4 69. Qxd4) 68... dxc3 {[%emt 0:00:35]
} 69. Nc2 {[%emt 0:02:00]} g4 $2 {[%emt 0:00:49]} (69... Qd7 $19 {is more
deadly.} 70. Ne1 b4 71. hxg5 (71. Rxg5 $2 c2+ 72. Nxc2 Qxd3+ 73. Ke1 Rgxg5 $19)
71... Nd4) 70. d4 $17 {[%emt 0:00:28]} Rd6 {[%emt 0:00:00]} 71. Kc1 {[%emt 0:
00:07] [#]} Nxd4 $1 {[%emt 0:00:16]} 72. Nxd4 {[%emt 0:00:07]} Qd8 {[%emt 0:02:
08]} 73. b4 {[%emt 0:00:17]} Rxd4 {[%emt 0:00:00]} 74. bxc5+ {[%emt 0:00:10]}
Kxc5 $2 {[%emt 0:00:25]} (74... Kc6 $1 $11) 75. fxg4 $2 {[%emt 0:01:45]} (75.
Rc2 $18 b4 76. fxg4 (76. Rca2 Kc4 $18)) 75... a4 $2 {[%emt 0:00:53]} (75... f3
$11 76. Rc2 b4) 76. gxh5 $18 {[%emt 0:00:39] And now Rb1 would win.} Kb4 {
[%emt 0:00:44]} 77. Rc2 {[%emt 0:02:25]} Rd3 {[%emt 0:00:43] [#]} 78. Rb1+ $2 {
[%emt 0:00:05]} (78. h6 $1 Rg3 79. Qf2 (79. Rb1+ Kc4 $18)) 78... Kc4 {[%emt 0:
00:21] [#]} 79. Qf1 {[%emt 0:01:20]} (79. h6 $1 $16 {[%cal Rh6h7]} Rg3 80. Qf1+
Qd3 81. Rf2) 79... b4 $11 {[%emt 0:00:30] Hoping for ...b3. The board is on
fire.} 80. e5 $2 {[%emt 0:00:19]} ({Avoid the trap} 80. Ra2 $2 Qd4 81. Rba1 a3
$19) (80. Rxc3+ $11 Kxc3 81. Qe1+ Kd4 82. Rxb4+ Ke5 83. h6) 80... Qd4 $19 {
[%emt 0:00:00] ( -> ...Qe3+)} 81. Rf2 {[%emt 0:00:24]} Qe3+ {[%emt 0:00:06]
Weighted Error Value: White=0.25 (precise) /Black=0.15 (very precise)} 0-1

[Event "44th Chess Olympiad Open 2022"]
[Site "Chennai"]
[Date "2022.08.01"]
[Round "4.36"]
[White "Meier, Georg"]
[Black "Abdulwahhab, Ahmed Abdulsattar A"]
[Result "1-0"]
[WhiteElo "2613"]
[BlackElo "2251"]
[Annotator "TA"]
[PlyCount "53"]
[EventDate "2022.??.??"]
[TimeControl "60"]

{[%evp 14,53,34,34,39,36,50,48,35,28,58,65,78,29,31,32,79,70,128,121,127,127,
135,130,135,133,131,142,286,266,274,284,681,672,597,594,573,535,29992,29993,
29993,29994]} 1. Nf3 {[%emt 0:00:04]} Nf6 {[%emt 0:00:19]} 2. g3 {[%emt 0:00:
00]} g6 {[%emt 0:00:23]} 3. Bg2 {[%emt 0:00:05]} Bg7 {[%emt 0:00:13]} 4. O-O {
[%emt 0:00:06]} O-O {[%emt 0:01:06]} 5. d4 {[%emt 0:00:06][%cal Yd2d4,Yd4d5]}
d6 {[%emt 0:00:50]} 6. b3 {[%emt 0:00:47]} c5 {[%emt 0:02:28]} 7. Bb2 {[%emt 0:
01:18]} Nc6 {[%emt 0:01:38]} 8. d5 {[%emt 0:01:13]} Nb4 {[%emt 0:00:00] A49:1
d4 Nf6 2 Nf3 g6 3 g3: Anti-King's Indian systems.} 9. c4 {[%emt 0:01:04]} Rb8 {
[%emt 0:03:23]} 10. a3 {[%emt 0:06:16]} Na6 {[%emt 0:00:00] White is slightly
better.} 11. Nbd2 {[%emt 0:00:37]} Bd7 {[%emt 0:04:58]} 12. e4 {[%emt 0:04:43]}
b5 {[%emt 0:03:27]} 13. Bc3 {[%emt 0:04:40] [#]} ({White should play} 13. Re1
$16) 13... bxc4 $146 {[%emt 0:07:48]} ({Predecessor:} 13... e5 14. Ne1 Re8 15.
Nd3 Qb6 16. Kh1 b4 17. axb4 cxb4 18. Bb2 Nc5 19. Nxc5 Qxc5 {1-0 (38) Feroul,
M-Evrard,P France 1977}) 14. bxc4 {[%emt 0:02:45]} Ne8 {[%emt 0:04:27]} (14...
e5 $14 {might be stronger.}) 15. e5 $16 {[%emt 0:00:00]} dxe5 {[%emt 0:05:12]}
(15... Nac7 $14) 16. Nxe5 {[%emt 0:00:17]} Nd6 {[%emt 0:01:00]} 17. Re1 {
[%emt 0:00:28]} Re8 {[%emt 0:00:39]} 18. Qf3 {[%emt 0:00:00]} Ba4 {[%emt 0:05:
07]} 19. h4 {[%emt 0:06:57] 0x0.001680d2b03cdp-1022s more active pieces. The
black rooks are badly placed.} Qc8 {[%emt 0:04:20]} 20. Rac1 {[%emt 0:05:02]}
Nc7 {[%emt 0:00:49] A mistake that costs the game.} (20... Qf5 $16 {was
necessary.}) 21. Ne4 $18 {[%emt 0:00:35] [#] Strongly threatening Nxd6.} Bxe5 {
[%emt 0:04:38]} 22. Bxe5 {[%emt 0:00:18]} Rb3 $2 {[%emt 0:00:46]} (22... Nxe4
23. Qxe4 f6) 23. Qf4 {[%emt 0:00:47]} Nxe4 {[%emt 0:01:22]} 24. Rxe4 {[%emt 0:
01:08]} Na8 {[%emt 0:00:39]} 25. Rce1 {[%emt 0:00:13] Intending Qh6 and mate.}
Nb6 {[%emt 0:07:03]} 26. Qh6 {[%emt 0:00:00][%csl Ge5][%cal Rh6g7]} f6 {
[%emt 0:02:48] [#]} 27. Bxf6 $1 {[%emt 0:00:00] Weighted Error Value: White=0.
03 (flawless) /Black=0.69} 1-0